bitfinex/quotes_BTCUSD_20250711
["timestamp","ask_amount","ask_price","bid_price","bid_amount"]
[1752217839697,0.03717728,117510.0,117500.0,0.23738003]
[1752217839916,0.47987145,117510.0,117500.0,0.23738003]
[1752217841521,0.47987145,117510.0,117500.0,0.23543003]
[1752217841733,0.47987145,117510.0,117500.0,0.0158001]
[1752217841938,1.49922493,117510.0,117500.0,0.0158001]
[1752217842144,1.55734084,117510.0,117500.0,0.0158001]
[1752217842340,1.54713612,117510.0,117500.0,0.0158001]
[1752217842566,1.52023726,117510.0,117500.0,0.0158001]
[1752217843216,1.51923726,117510.0,117500.0,0.0158001]
[1752217843370,1.51723726,117510.0,117500.0,0.0158001]
[1752217844117,1.51923726,117510.0,117500.0,0.0158001]
[1752217845265,0.61705636,117510.0,117500.0,0.01584895]
[1752217845490,1.5424447,117510.0,117500.0,0.01584895]
[1752217845858,1.08520968,117510.0,117500.0,0.01584895]
[1752217846008,0.51783462,117510.0,117500.0,0.01584895]
[1752217846217,0.49187417,117510.0,117500.0,0.01584895]
[1752217846617,0.46932417,117510.0,117500.0,0.10343888]
[1752217846808,0.44669417,117510.0,117500.0,0.10343888]
[1752217847024,0.47265462,117510.0,117500.0,0.10343888]
[1752217847482,0.002,117510.0,117500.0,0.10343888]
[1752217847694,0.47065462,117510.0,117500.0,0.10343888]
[1752217848203,0.46865462,117510.0,117500.0,0.164516]
[1752217848458,0.45945174,117510.0,117500.0,0.164516]
[1752217848594,0.46045174,117510.0,117500.0,0.164516]
[1752217848795,0.50605174,117510.0,117500.0,0.10127888]
[1752217849236,0.50605174,117510.0,117500.0,0.01584895]
[1752217849483,0.55605174,117510.0,117500.0,0.01584895]
[1752217849895,0.99874591,117510.0,117500.0,0.01584895]
[1752217850097,1.35328676,117510.0,117500.0,0.01584895]
[1752217850713,0.06386045,117490.0,117480.0,0.06107712]
[1752217850925,1.08491879,117490.0,117480.0,0.07696973]
[1752217851140,1.47792879,117490.0,117480.0,0.07696973]
[1752217851340,1.50482765,117490.0,117480.0,0.07696973]
[1752217851533,1.50482765,117490.0,117480.0,0.01589261]
[1752217852149,1.50482765,117490.0,117480.0,0.01689261]
[1752217852329,1.50482765,117490.0,117480.0,0.01589261]
[1752217852705,1.53235465,117490.0,117480.0,0.01589261]
[1752217853042,1.53235465,117490.0,117480.0,0.01789261]
[1752217853601,1.53235465,117490.0,117480.0,0.01589261]
[1752217853820,1.53335465,117490.0,117480.0,0.01589261]
[1752217854021,1.50782765,117490.0,117480.0,0.01589261]
[1752217854270,1.49762178,117490.0,117480.0,0.01589261]
[1752217854475,1.47072292,117490.0,117480.0,0.01589261]
[1752217861313,1.33704292,117490.0,117480.0,0.01589261]
[1752217861516,1.47072292,117490.0,117480.0,0.01589261]
[1752217866218,1.48526377,117490.0,117480.0,0.01589261]
[1752217866463,2.04028673,117490.0,117480.0,0.01589261]
[1752217866664,1.62312156,117490.0,117480.0,0.01589261]
[1752217868069,1.64909883,117490.0,117480.0,0.01589261]
[1752217874940,0.019,117460.0,117440.0,0.06107712]
[1752217875149,1.01906834,117450.0,117440.0,0.14650705]
[1752217875308,0.99503787,117450.0,117440.0,0.14866705]
[1752217875741,0.99503787,117450.0,117440.0,0.16766705]
[1752217876141,0.99503787,117450.0,117440.0,0.16866705]
[1752217876347,1.02627722,117450.0,117440.0,0.16966705]
[1752217877496,0.99503787,117450.0,117440.0,0.16866705]
[1752217877700,0.5523437,117450.0,117440.0,0.16866705]
[1752217877936,0.5523437,117450.0,117440.0,0.16966705]
[1752217878712,0.99503787,117450.0,117440.0,0.16966705]
[1752217878939,1.02605221,117450.0,117440.0,0.16966705]
[1752217880116,1.14478266,117450.0,117440.0,0.06307712]
[1752217881475,1.14478266,117450.0,117440.0,0.00397]
[1752217881476,0.46149417,117450.0,117440.0,0.00397]
[1752217881701,0.44269417,117450.0,117440.0,0.17397705]
[1752217881940,0.44269417,117450.0,117440.0,0.12879993]
[1752217882305,0.46865462,117450.0,117440.0,0.12879993]
[1752217882514,0.44269417,117450.0,117440.0,0.12879993]
[1752217883370,0.02596045,117460.0,117440.0,0.12879993]
[1752217883568,0.44269417,117460.0,117450.0,0.16245877]
[1752217883788,0.44269417,117460.0,117450.0,0.32253733]
[1752217884013,0.44269417,117470.0,117460.0,0.035]
[1752217884211,0.13677,117490.0,117470.0,0.0191]
[1752217884212,0.44269417,117480.0,117470.0,0.0191]
[1752217884418,0.91134879,117480.0,117470.0,0.10649993]
[1752217884855,0.91134879,117480.0,117470.0,0.16761801]
[1752217885018,0.45798298,117480.0,117470.0,0.10649993]
[1752217885258,0.45798298,117480.0,117470.0,0.16761801]
[1752217885394,0.45798298,117480.0,117470.0,0.10649993]
[1752217885594,0.47818298,117480.0,117470.0,0.08739993]
[1752217885887,0.48325298,117480.0,117470.0,0.08739993]
[1752217886461,0.47818298,117480.0,117470.0,0.08739993]
[1752217886658,0.5089884,117480.0,117470.0,0.08739993]
[1752217886858,0.5140584,117480.0,117470.0,0.00197]
[1752217887080,0.5343584,117480.0,117470.0,0.01591553]
[1752217887277,0.5353584,117480.0,117470.0,0.01591553]
[1752217887913,0.5150584,117480.0,117470.0,0.01591553]
[1752217888618,0.6487384,117480.0,117470.0,0.01591553]
[1752217888867,0.6681384,117480.0,117470.0,0.01591553]
[1752217889482,0.7181384,117480.0,117470.0,0.01591553]
[1752217890043,1.15016093,117480.0,117470.0,0.01591553]
[1752217890232,1.59013171,117480.0,117470.0,0.01591553]
[1752217891444,1.61703057,117480.0,117470.0,0.01591553]
[1752217893054,1.15810918,117480.0,117470.0,0.01591553]
[1752217894540,1.18364218,117480.0,117470.0,0.01591553]
[1752217894777,1.18364218,117480.0,117450.0,0.06111808]
[1752217894993,0.45242253,117460.0,117450.0,0.07703768]
[1752217895290,0.60379519,117460.0,117450.0,0.07900768]
[1752217895717,0.60688519,117460.0,117450.0,0.07900768]
[1752217895926,0.60688519,117460.0,117450.0,0.08100768]
[1752217896128,0.60688519,117460.0,117450.0,0.07903768]
[1752217896260,0.60688519,117460.0,117450.0,0.07703768]
[1752217896660,0.62678519,117460.0,117450.0,0.07903768]
[1752217897087,0.62678519,117460.0,117450.0,0.07703768]
[1752217897514,0.62678519,117460.0,117450.0,0.07903768]
[1752217897771,1.31516772,117460.0,117450.0,0.08103768]
[1752217897938,1.44880772,117460.0,117450.0,0.08103768]
[1752217898137,1.5487785,117460.0,117450.0,0.08103768]
[1752217898520,1.5487785,117460.0,117450.0,0.0179196]
[1752217898720,1.5497785,117460.0,117450.0,0.0179196]
[1752217898971,1.5497785,117460.0,117450.0,0.0159196]
[1752217899601,1.5753145,117460.0,117450.0,0.0159196]
[1752217900020,1.4416745,117460.0,117450.0,0.0159196]
[1752217900252,1.42534372,117460.0,117450.0,0.0159196]
[1752217900451,0.88414519,117460.0,117450.0,0.0159196]
[1752217900650,1.01778519,117460.0,117450.0,0.0159196]
[1752217900858,1.44980772,117460.0,117450.0,0.0159196]
[1752217902197,1.46434857,117460.0,117450.0,0.0159196]
[1752217905662,1.5497785,117460.0,117450.0,0.0159196]
[1752217906355,1.55829152,117460.0,117450.0,0.0159196]
[1752217906703,1.5497785,117460.0,117450.0,0.0159196]
[1752217906817,1.5487785,117460.0,117450.0,0.0159196]
[1752217907028,1.56580455,117460.0,117450.0,0.0159196]
[1752217907272,1.57180455,117460.0,117450.0,0.0159196]
[1752217907476,1.56329145,117460.0,117450.0,0.0159196]
[1752217908515,1.5547785,117460.0,117450.0,0.0159196]
[1752217908993,1.57180448,117460.0,117450.0,0.0159196]
[1752217909233,1.5718044,117460.0,117450.0,0.0159196]
[1752217909427,1.56329138,117460.0,117450.0,0.0159196]
[1752217909652,1.5718044,117460.0,117450.0,0.0159196]
[1752217910584,1.57180433,117460.0,117450.0,0.0159196]
[1752217910785,1.60585635,117460.0,117450.0,0.0159196]
[1752217910997,1.59734333,117460.0,117450.0,0.0159196]
[1752217911407,1.60585643,117460.0,117450.0,0.0159196]
[1752217911854,1.62288313,117460.0,117450.0,0.0159196]
[1752217912066,0.06666045,117430.0,117420.0,0.06111808]
[1752217912278,0.97746298,117430.0,117420.0,0.06111808]
[1752217912944,1.43134277,117430.0,117420.0,0.06111808]
[1752217913293,1.43134277,117430.0,117420.0,0.06211808]
[1752217913546,0.83295116,117430.0,117420.0,0.08711808]
[1752217913763,0.99251161,117430.0,117420.0,0.10711808]
[1752217913979,0.98230162,117430.0,117420.0,0.10711808]
[1752217914183,0.98230162,117430.0,117420.0,0.046]
[1752217914397,0.98230162,117430.0,117420.0,0.076]
[1752217914855,0.51891161,117430.0,117420.0,0.076]
[1752217915082,0.65255161,117430.0,117420.0,0.026]
[1752217915717,0.65255161,117430.0,117420.0,0.027]
[1752217916482,0.51891161,117430.0,117420.0,0.027]
[1752217916720,0.60251161,117430.0,117420.0,0.0465]
[1752217916956,0.46891161,117430.0,117420.0,0.0465]
[1752217917152,0.60251161,117430.0,117420.0,0.0465]
[1752217917374,0.65251161,117430.0,117420.0,0.0465]
[1752217918142,0.44604116,117440.0,117430.0,0.0407]
[1752217918143,0.46891161,117440.0,117430.0,0.0407]
[1752217918507,0.88590232,117440.0,117430.0,0.0457]
[1752217918711,1.04546277,117440.0,117430.0,0.0457]
[1752217920424,0.91186277,117440.0,117430.0,0.0457]
[1752217920638,0.44295116,117440.0,117430.0,0.13325885]
[1752217921057,0.91186277,117440.0,117430.0,0.13325885]
[1752217921282,0.88590232,117440.0,117430.0,0.13325885]
[1752217921484,0.91186277,117440.0,117430.0,0.13112993]
[1752217921900,0.02596045,117440.0,117430.0,0.13112993]
[1752217922105,0.91186277,117440.0,117430.0,0.13325885]
[1752217922331,0.91186277,117440.0,117430.0,0.13112993]
[1752217923221,0.88590232,117440.0,117430.0,0.13112993]
[1752217923414,0.88590232,117440.0,117430.0,0.13212993]
[1752217923558,0.44295116,117440.0,117430.0,0.13212993]
[1752217923755,0.88590232,117440.0,117430.0,0.13312993]
[1752217924101,0.88590232,117440.0,117430.0,0.21015601]
[1752217924781,0.91186277,117440.0,117430.0,0.21015601]
[1752217927204,1.04542277,117440.0,117430.0,0.14903793]
[1752217928028,1.04542277,117440.0,117430.0,0.12853793]
[1752217928437,1.04542277,117440.0,117430.0,0.14763793]
[1752217928640,1.04542277,117440.0,117430.0,0.21088493]
[1752217928860,0.91186277,117440.0,117430.0,0.14763793]
[1752217929058,0.91186277,117440.0,117430.0,0.20875601]
[1752217929427,0.88590232,117440.0,117430.0,0.20875601]
[1752217929681,0.91186277,117440.0,117430.0,0.20875601]
[1752217931077,0.90165337,117440.0,117430.0,0.20875601]
[1752217931287,0.90165337,117440.0,117430.0,0.18965601]
[1752217931895,0.90165337,117440.0,117430.0,0.12853793]
[1752217932094,0.90165337,117440.0,117430.0,0.18965601]
[1752217932701,0.90165337,117440.0,117430.0,0.20995601]
[1752217933120,0.44295116,117450.0,117440.0,0.0397]
[1752217933321,0.44295116,117450.0,117440.0,0.28172667]
[1752217933654,0.88590232,117450.0,117440.0,0.20717293]
[1752217933787,0.44295116,117450.0,117440.0,0.34073293]
[1752217934833,0.15952045,117460.0,117440.0,0.34073293]
[1752217935054,0.44295116,117450.0,117440.0,0.255303]
[1752217935262,0.44295116,117450.0,117440.0,0.34073293]
[1752217935468,0.44295116,117450.0,117440.0,0.35598011]
[1752217936485,0.43274295,117450.0,117440.0,0.27959793]
[1752217937129,0.43274295,117450.0,117440.0,0.35598011]
[1752217937329,0.43274295,117450.0,117440.0,0.27959793]
[1752217937530,0.43274295,117450.0,117440.0,0.28059793]
[1752217938128,0.43274295,117450.0,117440.0,0.14703793]
[1752217938326,0.43274295,117450.0,117440.0,0.28059793]
[1752217938554,0.15952045,117460.0,117440.0,0.28059793]
[1752217938555,0.02596045,117460.0,117440.0,0.28059793]
[1752217938756,0.02596045,117460.0,117450.0,0.14650718]
[1752217938934,0.46891161,117460.0,117450.0,0.16445518]
[1752217939411,0.44295116,117460.0,117450.0,0.16445518]
[1752217939657,0.46891161,117460.0,117450.0,0.16445518]
[1752217939869,0.46891161,117460.0,117450.0,0.16658374]
[1752217940058,0.46891161,117460.0,117450.0,0.16445518]
[1752217940306,0.46891161,117460.0,117450.0,0.20934374]
[1752217940307,0.44295116,117460.0,117450.0,0.20934374]
[1752217940504,0.44295116,117460.0,117450.0,0.20721518]
[1752217941143,0.43274437,117460.0,117450.0,0.20721518]
[1752217941350,0.43274437,117460.0,117450.0,0.18801518]
[1752217942367,0.16337045,117470.0,117450.0,0.18801518]
[1752217942567,0.16337045,117470.0,117460.0,0.17992688]
[1752217942568,0.02917045,117470.0,117460.0,0.17992688]
[1752217942775,0.49373161,117470.0,117460.0,0.28330481]
[1752217943410,0.49373161,117470.0,117460.0,0.26739681]
[1752217944460,0.05078045,117470.0,117460.0,0.26739681]
[1752217944760,0.49373161,117470.0,117460.0,0.26739681]
[1752217945335,0.60500161,117470.0,117460.0,0.26739681]
[1752217945719,0.44395116,117470.0,117460.0,0.31185681]
[1752217945912,0.001,117470.0,117460.0,0.32716718]
[1752217946112,0.44595116,117470.0,117460.0,0.32716718]
[1752217946522,0.003,117470.0,117460.0,0.32716718]
[1752217946929,0.44395116,117470.0,117460.0,0.32716718]
[1752217947147,0.001,117470.0,117460.0,0.26908993]
[1752217947549,0.001,117470.0,117460.0,0.34547211]
[1752217947805,0.44295116,117480.0,117470.0,0.0383]
[1752217948014,0.44295116,117480.0,117470.0,0.18675882]
[1752217948245,0.44295116,117480.0,117470.0,0.18991882]
[1752217949032,0.44295116,117480.0,117470.0,0.19191882]
[1752217949618,0.44295116,117480.0,117470.0,0.19391882]
[1752217949873,0.44295116,117480.0,117470.0,0.20979393]
[1752217950240,0.44295116,117480.0,117470.0,0.22618722]
[1752217950695,0.88590232,117480.0,117470.0,0.34078722]
[1752217951049,0.87569748,117480.0,117470.0,0.36164722]
[1752217951642,0.87569748,117480.0,117470.0,0.28526504]
[1752217952285,0.02917045,117500.0,117470.0,0.28526504]
[1752217952489,0.04131,117510.0,117490.0,0.04566925]
[1752217952693,0.44295116,117500.0,117490.0,0.30123429]
[1752217952903,0.46891161,117500.0,117490.0,0.30327429]
[1752217953107,0.44295116,117500.0,117490.0,0.30643429]
[1752217953540,0.49930162,117520.0,117490.0,0.26076504]
[1752217953752,0.003,117510.0,117500.0,0.15108515]
[1752217953971,0.44595116,117510.0,117500.0,0.28169269]
[1752217954167,0.44595116,117510.0,117500.0,0.27956504]
[1752217954373,0.44595116,117510.0,117500.0,0.34045738]
[1752217954574,0.44595116,117510.0,117500.0,0.27956504]
[1752217955038,0.43166012,117520.0,117510.0,0.0397]
[1752217955263,0.02321,117540.0,117520.0,0.019]
[1752217955469,0.43166012,117530.0,117520.0,0.03803511]
[1752217955681,0.43166012,117530.0,117520.0,0.31827738]
[1752217955876,0.43166012,117530.0,117520.0,0.32031738]
[1752217956445,0.43166012,117530.0,117520.0,0.25942504]
[1752217956851,0.43166012,117530.0,117520.0,0.25626504]
[1752217957049,0.43166012,117530.0,117520.0,0.23726504]
[1752217957635,0.43366012,117530.0,117520.0,0.23726504]
[1752217958055,0.43366012,117530.0,117520.0,0.28280561]
[1752217958261,0.89084024,117530.0,117520.0,0.28060561]
[1752217958433,0.91084024,117530.0,117520.0,0.28060561]
[1752217958665,0.91084024,117530.0,117520.0,0.14684561]
[1752217958867,0.91084024,117530.0,117520.0,0.28060561]
[1752217959075,1.08510154,117530.0,117520.0,0.06141568]
[1752217959252,1.49326788,117530.0,117520.0,0.01587511]
[1752217959652,0.02596045,117510.0,117500.0,0.06089234]
[1752217959851,1.06754069,117510.0,117500.0,0.16213543]
[1752217960953,1.06754069,117510.0,117500.0,0.10224309]
[1752217961188,0.43367012,117510.0,117500.0,0.10641074]
[1752217961397,0.43367012,117510.0,117500.0,0.10428309]
[1752217961398,0.45762057,117510.0,117500.0,0.10428309]
[1752217961599,0.43166012,117510.0,117500.0,0.19106308]
[1752217961904,0.41784634,117510.0,117500.0,0.18893543]
[1752217962269,0.43166012,117520.0,117500.0,0.26180309]
[1752217962486,0.02596045,117520.0,117510.0,0.14826224]
[1752217962719,0.43166012,117520.0,117510.0,0.16398793]
[1752217963329,0.18343045,117530.0,117510.0,0.16398793]
[1752217963516,0.43166012,117520.0,117510.0,0.16398793]
[1752217963691,0.43166012,117520.0,117510.0,0.18664793]
[1752217964082,0.43166012,117520.0,117510.0,0.16398793]
[1752217964287,0.43266012,117520.0,117510.0,0.16398793]
[1752217964803,0.43467012,117520.0,117510.0,0.10328309]
[1752217965118,0.43567012,117520.0,117510.0,0.10328309]
[1752217965341,0.43567012,117520.0,117510.0,0.10256369]
[1752217965470,0.43567012,117520.0,117510.0,0.16326853]
[1752217965666,0.43366012,117520.0,117510.0,0.16326853]
[1752217967722,0.43366012,117520.0,117510.0,0.16326925]
[1752217968330,0.002,117520.0,117510.0,0.16326925]
[1752217968535,0.43366012,117520.0,117510.0,0.16539672]
[1752217968753,0.43366012,117520.0,117510.0,0.16326925]
[1752217969360,0.43366012,117520.0,117510.0,0.18376925]
[1752217969563,0.43366012,117520.0,117510.0,0.18670925]
[1752217970578,0.43366012,117520.0,117510.0,0.18170925]
[1752217971201,0.42345952,117520.0,117510.0,0.18170925]
[1752217971579,0.41325894,117520.0,117510.0,0.20080925]
[1752217971852,0.41325894,117520.0,117510.0,0.14010441]
[1752217972026,0.41325894,117520.0,117510.0,0.18177317]
[1752217972477,0.41325894,117520.0,117510.0,0.15833317]
[1752217972687,1.06366036,117520.0,117510.0,0.07658069]
[1752217972889,0.70040142,117520.0,117510.0,0.07658069]
[1752217973093,1.13206154,117520.0,117510.0,0.01581193]
[1752217973301,1.49026788,117520.0,117510.0,0.01256193]
[1752217973511,1.44213781,117520.0,117510.0,0.01256193]
[1752217973731,1.57573781,117520.0,117510.0,0.01256193]
[1752217973932,0.06486045,117500.0,117490.0,0.06076876]
[1752217974160,1.40690069,117500.0,117490.0,0.06076876]
[1752217974369,1.42506703,117500.0,117490.0,0.06076876]
[1752217975162,1.42506703,117500.0,117480.0,0.06076876]
[1752217975163,0.0405013,117490.0,117480.0,0.06076876]
[1752217975363,0.49908057,117490.0,117480.0,0.06076876]
[1752217975571,0.55204057,117490.0,117480.0,0.06076876]
[1752217977040,0.68560057,117490.0,117470.0,0.07638218]
[1752217977247,0.43166012,117480.0,117470.0,0.16181211]
[1752217977448,0.43382012,117480.0,117470.0,0.16181211]
[1752217977657,0.45978057,117480.0,117470.0,0.08542993]
[1752217977868,0.45412012,117480.0,117470.0,0.08542993]
[1752217978071,0.48008057,117480.0,117470.0,0.16161111]
[1752217978451,0.48008057,117480.0,117470.0,0.16189886]
[1752217978990,0.04842045,117480.0,117470.0,0.16398886]
[1752217979196,0.48008057,117480.0,117470.0,0.16398886]
[1752217979529,0.48008057,117480.0,117470.0,0.08680768]
[1752217979735,0.45762057,117480.0,117470.0,0.16596091]
[1752217979935,0.45762057,117480.0,117470.0,0.16696091]
[1752217980776,0.45978057,117480.0,117470.0,0.09074768]
[1752217981180,0.45978057,117480.0,117470.0,0.09274768]
[1752217981620,0.45978057,117480.0,117470.0,0.08771768]
[1752217981823,0.04802045,117480.0,117470.0,0.08771768]
[1752217982175,0.47968057,117480.0,117470.0,0.08771768]
[1752217982390,0.45668012,117480.0,117470.0,0.08771768]
[1752217982600,0.53264057,117480.0,117470.0,0.001]
[1752217982800,0.55264057,117480.0,117470.0,0.003]
[1752217983034,0.55264057,117480.0,117470.0,0.06398916]
[1752217983238,0.55270173,117480.0,117470.0,0.06398916]
[1752217984304,0.55270173,117480.0,117470.0,0.003]
[1752217984507,0.55264057,117480.0,117470.0,0.00293884]
[1752217984888,0.56718142,117480.0,117470.0,0.00293884]
[1752217985570,0.1355213,117480.0,117470.0,0.00293884]
[1752217985775,0.56718142,117480.0,117470.0,0.00093884]
[1752217985981,0.06636045,117470.0,117450.0,0.19458916]
[1752217986183,0.06932045,117470.0,117450.0,0.28001909]
[1752217986365,0.43166012,117460.0,117450.0,0.28295909]
[1752217986570,0.43166012,117460.0,117450.0,0.28504909]
[1752217987355,0.43166012,117460.0,117450.0,0.28604909]
[1752217987535,0.43166012,117460.0,117450.0,0.28804909]
[1752217987908,0.43166012,117460.0,117450.0,0.28700909]
[1752217988287,0.43166012,117460.0,117450.0,0.22601993]
[1752217988605,0.06636045,117470.0,117450.0,0.22601993]
[1752217988606,0.45762057,117470.0,117450.0,0.28700909]
[1752217988760,0.02596045,117470.0,117460.0,0.10906993]
[1752217988943,0.45978057,117470.0,117460.0,0.08751993]
[1752217989158,0.47888057,117470.0,117460.0,0.13356]
[1752217989352,0.49888057,117470.0,117450.0,0.20048916]
[1752217989687,0.43166012,117460.0,117450.0,0.22492993]
[1752217989837,0.43166012,117460.0,117450.0,0.28489427]
[1752217990229,0.43166012,117460.0,117450.0,0.28488697]
[1752217990963,0.43166012,117460.0,117450.0,0.15132697]
[1752217991171,0.43382012,117460.0,117450.0,0.28788697]
[1752217991337,0.43382012,117460.0,117450.0,0.15432697]
[1752217991565,0.45362012,117460.0,117450.0,0.28494697]
[1752217991780,0.45362012,117460.0,117450.0,0.14929697]
[1752217991980,0.47578012,117460.0,117450.0,0.14929697]
[1752217992268,0.50174057,117460.0,117450.0,0.14929697]
[1752217992714,0.50174057,117460.0,117450.0,0.08842993]
[1752217992876,0.50174057,117460.0,117450.0,0.08542993]
[1752217993489,0.0396,117450.0,117440.0,0.06086704]
[1752217993692,0.47638012,117450.0,117440.0,0.27985697]
[1752217993893,0.60698012,117450.0,117440.0,0.14629697]
[1752217994118,0.60994012,117450.0,117440.0,0.06086704]
[1752217994652,0.63590057,117450.0,117440.0,0.06086704]
[1752217995047,0.0193,117440.0,117420.0,0.07915323]
[1752217995282,0.0393,117440.0,117430.0,0.08542993]
[1752217995453,0.47312012,117440.0,117430.0,0.21898993]
[1752217995695,0.47312012,117440.0,117430.0,0.08542993]
[1752217995898,0.0194,117430.0,117420.0,0.13356]
[1752217996097,0.00216,117430.0,117420.0,0.21898993]
[1752217996417,0.00216,117430.0,117420.0,0.22398993]
[1752217996620,0.00216,117430.0,117420.0,0.22303993]
[1752217996823,0.43182012,117430.0,117420.0,0.22303993]
[1752217997037,0.43182012,117430.0,117420.0,0.22406993]
[1752217997205,0.43182012,117430.0,117420.0,0.22606993]
[1752217997410,0.43182012,117430.0,117420.0,0.09550993]
[1752217997738,0.43182012,117430.0,117420.0,0.22906993]
[1752217998287,0.00016,117430.0,117420.0,0.22906993]
[1752217998487,0.43166012,117430.0,117420.0,0.22906993]
[1752218000625,0.0688704,117440.0,117420.0,0.22906993]
[1752218000846,0.43166012,117430.0,117420.0,0.22906993]
[1752218001146,0.50053052,117440.0,117420.0,0.22906993]
[1752218001323,0.52053052,117440.0,117420.0,0.22906993]
[1752218001529,0.43166012,117430.0,117420.0,0.22906993]
[1752218002112,0.43166012,117430.0,117420.0,0.22706993]
[1752218002290,0.43166012,117430.0,117420.0,0.22406993]
[1752218002495,0.43166012,117430.0,117420.0,0.22606993]
[1752218003310,0.43166012,117430.0,117420.0,0.22406993]
[1752218003965,0.43166012,117430.0,117420.0,0.23995491]
[1752218004326,0.0888704,117440.0,117420.0,0.23995491]
[1752218004533,0.43166012,117430.0,117420.0,0.24195491]
[1752218005136,0.0888704,117440.0,117420.0,0.24195491]
[1752218005341,0.43166012,117430.0,117420.0,0.24195491]
[1752218005880,0.43166012,117430.0,117420.0,0.23995491]
[1752218006387,0.43166012,117430.0,117420.0,0.24195491]
[1752218007003,0.43166012,117430.0,117420.0,0.24395491]
[1752218007795,0.04596045,117440.0,117420.0,0.26315491]
[1752218007993,0.47692057,117450.0,117430.0,0.10978885]
[1752218008245,0.45096012,117460.0,117440.0,0.15788]
[1752218008381,0.02596045,117450.0,117440.0,0.25919491]
[1752218008839,0.45762057,117450.0,117440.0,0.25919491]
[1752218009039,0.45762057,117450.0,117440.0,0.23999491]
[1752218010638,0.45862057,117450.0,117440.0,0.25939491]
[1752218011488,0.001,117450.0,117440.0,0.27889491]
[1752218012069,0.45762057,117450.0,117440.0,0.27889491]
[1752218012210,0.02596045,117450.0,117440.0,0.27889491]
[1752218012415,0.45762057,117450.0,117440.0,0.27889491]
[1752218012771,0.02596045,117450.0,117440.0,0.27889491]
[1752218013171,0.02596045,117450.0,117440.0,0.25939491]
[1752218013405,0.45762057,117450.0,117440.0,0.25939491]
[1752218013810,0.02596045,117450.0,117440.0,0.25939491]
[1752218013983,0.45762057,117450.0,117440.0,0.25939491]
[1752218014224,0.43720523,117450.0,117440.0,0.25939491]
[1752218015165,0.43720523,117460.0,117450.0,0.02]
[1752218015401,0.00554511,117460.0,117450.0,0.12639491]
[1752218015836,0.43720523,117460.0,117450.0,0.12639491]
[1752218016035,0.59216523,117470.0,117450.0,0.12639491]
[1752218016183,0.00554511,117460.0,117450.0,0.12336491]
[1752218016631,0.00754511,117460.0,117450.0,0.10336491]
[1752218016833,0.43820523,117460.0,117450.0,0.10639491]
[1752218016984,0.43720523,117460.0,117450.0,0.10639491]
[1752218018210,0.43720523,117460.0,117450.0,0.23995491]
[1752218018416,0.47968523,117460.0,117450.0,0.10131491]
[1752218021114,0.48159523,117460.0,117450.0,0.01588498]
[1752218021315,0.9777962,117460.0,117450.0,0.01588498]
[1752218022249,0.9797962,117460.0,117450.0,0.01588498]
[1752218022793,0.54813608,117460.0,117450.0,0.01588498]
[1752218023230,0.9797962,117460.0,117450.0,0.01588498]
[1752218023433,1.3207962,117460.0,117450.0,0.01588498]
[1752218023641,0.88913608,117460.0,117450.0,0.01588498]
[1752218024101,0.87892743,117460.0,117450.0,0.01588498]
[1752218024321,1.31058755,117460.0,117450.0,0.01588498]
[1752218024936,1.3386987,117460.0,117450.0,0.01588498]
[1752218025990,1.42412863,117460.0,117450.0,0.01588498]
[1752218026389,1.42412863,117460.0,117420.0,0.00303]
[1752218026390,0.45770523,117440.0,117420.0,0.00303]
[1752218026599,0.41783528,117430.0,117420.0,0.08845993]
[1752218026799,0.41783528,117430.0,117420.0,0.09050993]
[1752218027639,0.41783528,117430.0,117420.0,0.09250993]
[1752218027967,0.41783528,117430.0,117420.0,0.09550993]
[1752218028166,0.41783528,117430.0,117420.0,0.09350993]
[1752218028617,0.41783528,117430.0,117420.0,0.08842993]
[1752218028830,0.51298039,117430.0,117420.0,0.003]
[1752218029036,0.53800529,117430.0,117420.0,0.003]
[1752218031234,0.52756186,117430.0,117420.0,0.003]
[1752218031990,0.52756186,117430.0,117420.0,0.005]
[1752218034968,0.52756186,117430.0,117420.0,0.00705]
[1752218035165,0.43796186,117440.0,117430.0,0.0409]
[1752218035366,0.43796186,117440.0,117430.0,0.12837993]
[1752218035606,0.00554511,117440.0,117430.0,0.12837993]
[1752218035783,0.43796186,117440.0,117430.0,0.10687993]
[1752218035992,0.43796186,117440.0,117430.0,0.10997993]
[1752218036163,0.57148186,117440.0,117430.0,0.10947993]
[1752218036359,0.57148186,117440.0,117430.0,0.11047993]
[1752218036565,0.4318,117460.0,117430.0,0.12987993]
[1752218036804,0.56593675,117450.0,117440.0,0.08852993]
[1752218037016,0.43241675,117450.0,117440.0,0.09057993]
[1752218037218,0.43241675,117460.0,117440.0,0.11137993]
[1752218037429,0.56593675,117460.0,117450.0,0.0031]
[1752218037625,0.43241675,117460.0,117450.0,0.11137993]
[1752218038078,0.43241675,117460.0,117450.0,0.09057993]
[1752218038289,0.43241675,117460.0,117450.0,0.10649034]
[1752218039127,0.43241675,117460.0,117450.0,0.10444034]
[1752218039663,0.43241675,117460.0,117450.0,0.10134034]
[1752218039867,0.43541675,117460.0,117450.0,0.10134034]
[1752218040347,0.43541675,117460.0,117450.0,0.01591041]
[1752218040653,0.52601675,117460.0,117450.0,0.01591041]
[1752218040810,0.50651675,117460.0,117450.0,0.01591041]
[1752218042619,0.97377435,117460.0,117450.0,0.01591193]
[1752218043256,0.5413576,117460.0,117450.0,0.01591193]
[1752218044472,0.97377435,117460.0,117450.0,0.01591193]
[1752218044668,1.31377435,117460.0,117450.0,0.01591193]
[1752218045038,1.39920428,117460.0,117450.0,0.01591193]
[1752218047674,1.53272428,117460.0,117450.0,0.01591193]
[1752218047869,1.55825928,117460.0,117450.0,0.01591193]
[1752218050538,0.69342578,117460.0,117450.0,0.01591193]
[1752218050690,1.55825928,117460.0,117450.0,0.01591193]
[1752218052990,1.57886756,117460.0,117450.0,0.01591193]
[1752218060891,1.57886756,117460.0,117450.0,0.00743131]
[1752218061592,1.60140927,117460.0,117450.0,0.00743131]
[1752218061818,1.62439578,117460.0,117450.0,0.00743131]
[1752218065161,1.57886756,117460.0,117450.0,0.00743131]
[1752218067627,0.05734085,117440.0,117420.0,0.06110432]
[1752218067831,0.57620089,117430.0,117420.0,0.06424432]
[1752218068041,1.04488547,117430.0,117420.0,0.06622432]
[1752218068251,0.60216458,117430.0,117420.0,0.08782432]
[1752218068948,0.60216458,117430.0,117420.0,0.08982432]
[1752218069359,0.60216458,117430.0,117420.0,0.06622432]
[1752218069528,0.62620089,117430.0,117420.0,0.06622432]
[1752218069731,0.49272089,117430.0,117420.0,0.00512]
[1752218069940,0.62620089,117430.0,117420.0,0.02672]
[1752218070728,0.62720089,117430.0,117420.0,0.02672]
[1752218070932,0.62720089,117430.0,117420.0,0.08782432]
[1752218071737,0.49372089,117430.0,117420.0,0.08782432]
[1752218071938,0.62716089,117430.0,117420.0,0.02672]
[1752218072469,0.62716089,117430.0,117420.0,0.08782432]
[1752218072847,0.44372089,117430.0,117420.0,0.0517906]
[1752218073116,0.57716089,117430.0,117420.0,0.02178]
[1752218073974,0.57616089,117430.0,117420.0,0.02178]